bitfinex/quotes_SOLUSD_20240716
["timestamp","ask_amount","ask_price","bid_price","bid_amount"]
[1721128981240,1.58445292,157.82,157.71,1.26758618]
[1721128981412,7.59895184,157.83,157.71,1.26758618]
[1721128981610,6.0145,157.83,157.71,1.26758618]
[1721128982041,6.0145,157.83,157.72,19.14]
[1721128982325,6.0145,157.83,157.76,19.14]
[1721128982520,6.0145,157.83,157.77,85.74713108]
[1721128983054,23.0431347,157.88,157.79,19.14]
[1721128983222,6.8707347,157.88,157.8,84.48]
[1721128983545,0.8562347,157.88,157.82,19.14]
[1721128983756,0.8562347,157.88,157.85,19.14]
[1721128984041,0.8562347,157.88,157.86,85.74636334]
[1721128984219,0.8562347,157.88,157.87,60.88]
[1721128984419,0.8562347,157.88,157.87,126.22]
[1721128984920,0.6762347,157.88,157.87,126.22]
[1721128985119,10.0105,158.0,157.87,126.22]
[1721128985339,1.58242444,157.99,157.89,19.14]
[1721128985542,1.58255605,157.99,157.9,21.43604484]
[1721128985740,1.58252421,157.98,157.9,21.43604484]
[1721128985962,10.0105,158.0,157.9,21.43604484]
[1721128986148,10.0105,158.0,157.9,20.17]
[1721128986444,6.3303,157.97,157.91,1.26614841]
[1721128986628,6.3303,157.97,157.88,20.0]
[1721128986629,6.3307,157.96,157.89,1.26633141]
[1721128986827,11.58309811,157.95,157.73,6.1411]
[1721128987030,11.58309811,157.95,157.73,21.3257]
[1721128987031,6.3335,157.89,157.73,21.3257]
[1721128987227,10.0,157.91,157.73,21.3257]
[1721128987228,7.91763208,157.88,157.77,19.14]
[1721128987434,1.58373208,157.88,157.77,19.14]
[1721128987646,1.58362591,157.87,157.77,19.14]
[1721128987949,1.58381249,157.87,157.76,41.74]
[1721128988455,1.58381249,157.87,157.76,60.88]
[1721128988655,1.58381249,157.87,157.77,1.26709512]
[1721128988831,1.58390022,157.86,157.76,41.74]
[1721128989021,1.58405279,157.88,157.73,56.9246]
[1721128989425,1.58405279,157.88,157.74,19.14]
[1721128989752,10.0,157.87,157.74,19.14]
[1721128990050,1.5840857,157.86,157.74,19.14]
[1721128990254,6.6336,157.84,157.73,41.74]
[1721128990552,1.58423467,157.83,157.73,60.88]
[1721128990725,1.58423467,157.83,157.74,1.26738774]
[1721128991138,1.58419597,157.82,157.73,41.74]
[1721128991730,1.58419597,157.82,157.69,19.14]
[1721128992037,6.3375,157.8,157.68,41.74]
[1721128992238,11.58474663,157.79,157.66,6.62325718]
[1721128992443,17.92224663,157.79,157.66,25.76325718]
[1721128992744,16.3383,157.77,157.66,6.62325718]
[1721128992928,7.5855054,157.76,157.66,6.62325718]
[1721128993135,6.0004,157.76,157.67,1.26793137]
[1721128993356,6.0004,157.76,157.68,1.26792129]
[1721128993536,6.0004,157.76,157.66,25.76325718]
[1721128993736,6.0004,157.76,157.69,1.26793442]
[1721128994761,6.2472,157.81,157.7,19.31]
[1721128994966,1.58443919,157.8,157.71,20.17]
[1721128995347,17.92163919,157.8,157.72,1.26771779]
[1721128995646,17.92163919,157.8,157.71,1.26784165]
[1721128995847,11.58443919,157.8,157.71,1.26784165]
[1721128996082,1.58443919,157.8,157.71,1.26784165]
[1721128996983,6.3376,157.79,157.69,20.0]
[1721128997152,1.58485188,157.78,157.68,20.0]
[1721128997353,10.0,157.77,157.67,20.0]
[1721128997589,1.58511137,157.76,157.66,6.62325718]
[1721128997754,1.58489338,157.78,157.66,6.62325718]
[1721128998249,10.0,157.77,157.66,6.62325718]
[1721128998476,1.5850958,157.76,157.66,6.62325718]
[1721128998779,1.58493371,157.78,157.67,1.26810462]
[1721128999168,1.58493371,157.78,157.68,1.26784965]
[1721128999475,1.58481207,157.79,157.68,1.26784965]
[1721128999680,6.2472,157.81,157.71,19.14]
[1721128999850,6.2472,157.81,157.74,41.74]
[1721129000055,6.2472,157.81,157.75,20.17]
[1721129000284,6.2472,157.81,157.76,0.17]
[1721129000632,6.2472,157.81,157.76,1.43728818]
[1721129000757,7.94660875,157.86,157.77,1.43635638]
[1721129000966,6.3625,157.86,157.78,0.17]
[1721129001479,6.3625,157.86,157.77,61.91]
[1721129001858,6.3625,157.86,157.77,20.0]
[1721129002060,6.3625,157.86,157.76,0.17]
[1721129002364,6.3625,157.86,157.75,0.34]
[1721129003262,6.3625,157.86,157.75,19.48]
[1721129003468,6.3625,157.86,157.76,127.14721533]
[1721129003664,6.3625,157.86,157.77,0.34]
[1721129003890,6.3625,157.86,157.78,1.26718828]
[1721129004194,6.3625,157.86,157.77,20.34]
[1721129004402,6.3625,157.86,157.78,1.26725844]
[1721129004591,6.3625,157.86,157.77,20.17]
[1721129005180,6.3625,157.86,157.78,0.17]
[1721129005379,6.3625,157.86,157.77,20.17]
[1721129005604,6.3625,157.86,157.78,0.17]
[1721129005802,6.3625,157.86,157.78,1.26717302]
[1721129006307,6.3625,157.86,157.77,20.17]
[1721129006990,6.3625,157.86,157.78,1.26719831]
[1721129007583,6.3625,157.86,157.77,20.17]
[1721129007787,6.3625,157.86,157.77,39.31]
[1721129008094,6.3625,157.86,157.79,60.88]
[1721129008302,6.3625,157.86,157.8,85.74687988]
[1721129008697,6.3625,157.86,157.81,1.26686353]
[1721129008893,6.3625,157.86,157.82,0.17]
[1721129009206,6.3625,157.86,157.8,20.0]
[1721129009411,6.3625,157.86,157.79,0.17]
[1721129009599,6.3625,157.86,157.78,45.34]
[1721129009813,6.3625,157.86,157.79,20.0]
[1721129010105,6.3625,157.86,157.8,0.17]
[1721129010415,6.3625,157.86,157.8,65.74702381]
[1721129010583,6.6108,157.9,157.81,20.0]
[1721129010779,6.6108,157.9,157.82,1.60682108]
[1721129011008,6.6108,157.9,157.82,0.34]
[1721129011190,6.6108,157.9,157.83,1.26664414]
[1721129011501,6.6108,157.9,157.84,0.34]
[1721129012487,6.6108,157.9,157.85,1.26662424]
[1721129012689,6.6108,157.9,157.86,0.34]
[1721129013484,6.6108,157.9,157.86,0.17]
[1721129013693,6.6108,157.9,157.85,61.74]
[1721129013882,6.6108,157.9,157.86,0.34]
[1721129014602,6.6108,157.9,157.86,0.17]
[1721129014985,6.6108,157.9,157.86,1.2665777]
[1721129015386,6.6108,157.9,157.83,20.0]
[1721129015791,1.58347322,157.89,157.83,20.0]
[1721129016004,1.58347322,157.89,157.79,60.88]
[1721129016210,1.58347322,157.89,157.79,41.74]
[1721129017112,1.58347322,157.89,157.8,1.26702127]
[1721129017696,1.58347322,157.89,157.8,21.26702127]
[1721129017888,1.58347322,157.89,157.8,20.0]
[1721129018085,6.6108,157.9,157.81,1.26690236]
[1721129018289,6.6108,157.9,157.84,19.14]
[1721129018597,6.6108,157.9,157.85,21.2664887]
[1721129018799,6.6108,157.9,157.86,0.34]
[1721129019098,6.6108,157.9,157.86,1.60655275]
[1721129019506,6.6108,157.9,157.86,21.60655275]
[1721129019716,6.6108,157.9,157.86,20.17]
[1721129020015,6.6108,157.9,157.86,20.0]
[1721129020199,6.6108,157.9,157.84,20.0]
[1721129020509,6.6108,157.9,157.85,0.17]
[1721129021090,6.6108,157.9,157.84,20.0]
[1721129021303,6.6108,157.9,157.85,1.26672973]
[1721129021692,6.6108,157.9,157.84,20.0]
[1721129022698,6.6108,157.9,157.85,1.26665199]
[1721129022900,6.6108,157.9,157.86,0.17]
[1721129024506,21.5544,157.96,157.86,1.43654871]
[1721129024707,21.5544,157.96,157.87,0.17]
[1721129024908,21.5544,157.96,157.88,1.26626058]
[1721129025118,21.5544,157.96,157.89,60.88]
[1721129025420,21.5544,157.96,157.9,66.60610343]
[1721129027695,21.5544,157.96,157.9,65.34]
[1721129027899,21.5544,157.96,157.9,20.34]
[1721129029814,21.5544,157.96,157.89,60.88]
[1721129029815,21.5544,157.96,157.89,41.74]
[1721129030128,21.5544,157.96,157.86,60.88]
[1721129030129,21.5544,157.96,157.86,41.74]
[1721129030820,1.58295737,157.95,157.87,1.26636589]
[1721129031025,1.58295737,157.95,157.83,60.88]
[1721129031213,6.2179,157.94,157.83,60.88]
[1721129031530,1.58331069,157.93,157.84,1.26664855]
[1721129031707,1.58331085,157.92,157.84,1.26664855]
[1721129032020,1.58331085,157.92,157.8,19.14]
[1721129032226,15.6133,157.9,157.81,1.26684278]
[1721129032413,1.58365486,157.89,157.81,1.26684278]
[1721129033322,1.58365486,157.89,157.8,1.26692697]
[1721129034219,6.2596,157.88,157.8,1.26692697]
[1721129034422,1.58394829,157.87,157.8,1.26692697]
[1721129035804,1.58394829,157.87,157.8,21.26692697]
[1721129036129,1.58394829,157.87,157.8,1.26692697]
[1721129036324,1.58394829,157.87,157.8,21.26692697]
[1721129038223,1.58397324,157.87,157.8,21.26692697]
[1721129038424,7.84338495,157.88,157.8,21.26692697]
[1721129039311,6.2596,157.88,157.8,21.26692697]
[1721129040131,1.58374472,157.87,157.8,21.26692697]
[1721129041116,6.2596,157.88,157.8,40.40692697]
[1721129041322,6.2596,157.88,157.81,64.48]
[1721129041530,6.2596,157.88,157.82,21.26675029]
[1721129041734,6.0266,157.91,157.83,1.60674915]
[1721129042722,1.58340739,157.9,157.83,1.26674915]
[1721129042936,1.58340739,157.9,157.82,20.0]
[1721129043145,22.1522,157.89,157.81,1.26698084]
[1721129043345,22.1522,157.89,157.77,41.74]
[1721129043346,1.58386593,157.88,157.77,41.74]
[1721129043641,1.58386593,157.88,157.78,1.26702785]
[1721129044009,1.58386593,157.88,157.79,1.2670958]
[1721129045515,11.58386593,157.88,157.77,41.74]
[1721129045724,6.3288,157.87,157.76,6.61708768]
[1721129046031,1.58406717,157.86,157.77,1.26725373]
[1721129046230,6.3288,157.87,157.78,19.14]
[1721129046231,7.91272684,157.87,157.78,19.14]
[1721129046427,7.91272684,157.87,157.79,1.26699758]
[1721129046645,7.91272684,157.87,157.8,1.26709929]
[1721129047155,7.91272684,157.87,157.78,21.2671499]
[1721129048048,10.0,157.86,157.76,6.61708768]
[1721129048218,1.58422011,157.85,157.76,6.61708768]
[1721129048425,1.58422011,157.86,157.76,6.61708768]
[1721129048629,1.58386475,157.85,157.78,41.74]
[1721129048832,1.58386475,157.85,157.76,6.61708768]
[1721129048833,1.58386475,157.85,157.79,1.26725302]
[1721129049026,1.58386475,157.85,157.8,1.26727534]
[1721129049336,15.8288,157.83,157.76,6.61708768]
[1721129049547,17.41302066,157.83,157.76,6.61708768]
[1721129049867,1.58422073,157.82,157.76,6.61708768]
[1721129051137,1.58422073,157.82,157.7,19.14]
[1721129051353,1.58422073,157.82,157.71,25.75902873]
[1721129051558,1.58422073,157.82,157.72,1.26757724]
[1721129051938,6.4611,157.81,157.71,67.49902873]
[1721129052369,1.58442472,157.8,157.71,48.35902873]
[1721129052571,1.58442472,157.8,157.72,20.0]
[1721129052737,1.58442472,157.8,157.71,48.35902873]
[1721129053046,1.58442472,157.8,157.72,1.26767694]
[1721129053250,6.4611,157.81,157.72,1.26763493]
[1721129053758,1.58429124,157.8,157.72,1.26763493]
[1721129054162,1.58429124,157.8,157.72,20.0]
[1721129054365,1.58429124,157.8,157.73,1.26771496]
[1721129054959,1.58429124,157.8,157.7,20.0]
[1721129055153,1.58429124,157.8,157.68,41.74]
[1721129055472,1.58429124,157.8,157.69,20.5777946]
[1721129055678,1.58429124,157.8,157.7,45.0]
[1721129055850,1.58429124,157.8,157.71,1.43764281]
[1721129056054,1.58429124,157.8,157.71,43.17764281]
[1721129056573,1.58429124,157.8,157.72,20.0]
[1721129056747,1.58429124,157.8,157.73,1.26764424]
[1721129056962,1.58429124,157.8,157.74,1.26768031]
[1721129057768,1.58429124,157.8,157.75,1.26768195]
[1721129057974,1.58429124,157.8,157.73,1.26768355]
[1721129058170,1.58429124,157.8,157.74,1.26768319]
[1721129059079,1.58429124,157.8,157.72,20.0]
[1721129059592,1.58429124,157.8,157.73,1.26786624]
[1721129059792,1.58429124,157.8,157.7,1.267798]
[1721129059996,1.58429124,157.8,157.69,20.0]
[1721129060163,21.9879,157.78,157.7,1.2678678]
[1721129060363,1.58497455,157.77,157.7,1.2678678]
[1721129060560,1.58497439,157.76,157.7,1.2678678]
[1721129061593,1.58497503,157.75,157.7,1.2678678]
[1721129061796,17.92327503,157.77,157.69,1.26798002]
[1721129061974,6.6407,157.76,157.64,41.74]
[1721129062176,11.58529608,157.75,157.64,41.74]
[1721129062371,1.58529608,157.75,157.65,1.26823815]
[1721129063384,10.0,157.75,157.64,41.74]
[1721129063562,12.9795,157.76,157.64,41.74]
[1721129063766,10.0,157.75,157.64,41.74]
[1721129063972,22.334,157.74,157.64,41.74]
[1721129065419,22.334,157.74,157.65,20.0]
[1721129065922,1.58539546,157.73,157.65,20.0]
[1721129066412,1.58539546,157.73,157.66,1.26834203]
[1721129066605,22.334,157.74,157.66,1.26834203]
[1721129066606,22.334,157.74,157.67,42.08]
[1721129066777,22.334,157.74,157.68,66.26792606]
[1721129066983,22.334,157.74,157.69,0.34]
[1721129067808,22.334,157.74,157.69,0.17]
[1721129068114,22.334,157.74,157.68,21.26792606]
[1721129069081,1.58513415,157.73,157.68,20.0]
[1721129069399,1.58513415,157.73,157.64,41.74]
[1721129069614,1.58513415,157.73,157.65,0.17]
[1721129070009,1.58513415,157.73,157.64,41.74]
[1721129070216,1.58513415,157.73,157.65,1.26823602]
[1721129071191,1.58513415,157.73,157.64,41.74]
[1721129071387,22.334,157.74,157.65,39.24]
[1721129071711,22.334,157.74,157.66,65.33809035]
[1721129071917,22.334,157.74,157.67,20.34]
[1721129072806,22.334,157.74,157.68,1.26806127]
[1721129073516,6.6407,157.74,157.69,0.34]
[1721129073710,6.6407,157.74,157.69,84.41]
[1721129074330,6.6407,157.74,157.69,21.43775975]
[1721129074821,6.6407,157.74,157.69,21.26775975]
[1721129075325,6.6407,157.74,157.69,20.0]
[1721129075516,1.58504335,157.73,157.69,1.26803478]
[1721129075746,1.58504335,157.73,157.65,41.74]
[1721129075934,6.6407,157.74,157.66,1.26816621]
[1721129076312,1.58514364,157.73,157.66,1.26816621]
[1721129076636,16.1728,157.72,157.66,1.26816621]
[1721129077012,1.58531671,157.71,157.66,1.26816621]
[1721129078027,16.1728,157.72,157.66,1.26816621]
[1721129078220,16.1728,157.72,157.66,20.0]
[1721129079444,6.6407,157.74,157.67,19.41]
[1721129079646,8.22575741,157.74,157.68,20.0]
[1721129079815,8.22575741,157.74,157.66,20.0]
[1721129080132,8.22575741,157.74,157.67,0.17]
[1721129080133,6.6407,157.74,157.67,0.17]
[1721129080340,8.22576075,157.74,157.67,0.17]
[1721129080931,6.6407,157.74,157.67,1.26811028]
[1721129081139,6.6407,157.74,157.66,20.34]
[1721129081340,6.6407,157.74,157.67,45.34]
[1721129081641,8.2257474,157.74,157.68,21.2680385]
[1721129081845,6.6407,157.74,157.68,21.2680385]
[1721129082020,6.6407,157.74,157.68,20.0]
[1721129082342,6.6407,157.74,157.66,21.26818581]
[1721129083246,8.22590055,157.74,157.66,21.26818581]
[1721129083430,6.6407,157.74,157.67,0.17]
[1721129083634,6.6407,157.74,157.67,1.43803737]
[1721129084241,6.6407,157.74,157.7,37.09]
[1721129084739,6.6407,157.74,157.71,1.26788795]
[1721129085038,6.6407,157.74,157.7,37.09]
[1721129085244,6.6407,157.74,157.71,0.17]
[1721129085738,6.6407,157.74,157.71,20.17]
[1721129085940,21.5528,157.81,157.73,37.09]
[1721129086126,1.5844239,157.8,157.74,0.17]
[1721129086528,1.5844239,157.8,157.73,37.09]
[1721129087920,1.5844239,157.8,157.71,20.17]
[1721129088436,1.5844239,157.8,157.72,1.26778096]
[1721129088623,1.5844239,157.8,157.71,20.17]
[1721129089155,1.5844239,157.8,157.71,21.43772411]
[1721129089821,1.5844239,157.8,157.71,20.17]
[1721129090035,1.5844239,157.8,157.72,1.26771386]
[1721129090231,1.5844239,157.8,157.73,0.17]
[1721129090433,1.58442084,157.8,157.75,37.09]
[1721129090823,21.5528,157.81,157.75,37.09]
[1721129091853,1.58438236,157.8,157.75,37.09]
[1721129093539,1.58438236,157.8,157.72,37.09]
[1721129093737,1.58438236,157.8,157.73,20.0]
[1721129094433,1.58438236,157.8,157.72,37.09]
[1721129096544,21.5528,157.81,157.73,1.26772325]
[1721129096757,21.5528,157.81,157.74,0.17]
[1721129097154,21.5528,157.81,157.74,37.26]
[1721129097349,21.5528,157.81,157.75,1.2674757]
[1721129097572,21.5528,157.81,157.75,21.2674757]
[1721129098899,21.5528,157.81,157.76,0.17]
[1721129099285,21.5528,157.81,157.75,20.0]
[1721129099595,21.5528,157.81,157.76,1.26741808]
[1721129100513,21.5528,157.81,157.77,37.09]
[1721129101075,21.5528,157.81,157.78,1.26741834]
[1721129101312,21.5528,157.81,157.77,37.09]
[1721129101313,6.5339,157.81,157.77,37.09]
[1721129101610,6.5339,157.81,157.79,1.26735382]
[1721129102106,15.6158,157.85,157.8,1.26730547]
[1721129102307,15.6158,157.85,157.8,38.35730547]
[1721129102505,15.6158,157.85,157.81,0.34]
[1721129102824,15.6158,157.85,157.81,0.17]
[1721129103012,15.6158,157.85,157.8,37.09]
[1721129103179,15.6158,157.85,157.77,56.16]
[1721129103180,17.19958456,157.85,157.77,37.09]
[1721129103381,17.19958456,157.85,157.78,20.17]
[1721129104003,17.19958456,157.85,157.78,20.0]
[1721129104780,17.19958456,157.85,157.79,1.26728024]
[1721129104975,15.6158,157.85,157.79,1.26728024]
[1721129105382,17.19967421,157.85,157.79,1.26728024]
[1721129105893,17.19967421,157.85,157.78,20.0]
[1721129106098,17.19967421,157.85,157.79,1.26718212]
[1721129106310,17.19967421,157.85,157.77,37.26]
[1721129106695,17.19967421,157.85,157.76,37.09]
[1721129108405,27.19967421,157.85,157.76,37.09]
[1721129108605,27.19967421,157.85,157.77,1.26743252]
[1721129108811,27.19967421,157.85,157.76,37.09]
[1721129109100,6.2209,157.82,157.71,37.09]
[1721129109402,1.58461642,157.81,157.71,37.09]
[1721129109992,7.80544109,157.82,157.74,37.09]
[1721129110194,6.2209,157.82,157.75,1.26744999]
[1721129110587,6.2209,157.82,157.77,37.09]
[1721129110908,6.2209,157.82,157.78,1.26735371]
[1721129111094,15.6158,157.85,157.81,37.09]
[1721129111293,15.6158,157.85,157.82,1.26705691]
[1721129111490,15.6158,157.85,157.82,1.26705307]
[1721129111700,6.2209,157.86,157.82,20.0]
[1721129112005,6.2209,157.86,157.83,1.26708804]
[1721129112679,6.2209,157.86,157.82,20.0]
[1721129112904,6.2209,157.86,157.83,1.26688198]
[1721129113091,6.2209,157.86,157.82,20.0]
[1721129113291,6.2209,157.86,157.83,1.26691198]
[1721129114599,6.2209,157.86,157.76,19.07]
[1721129114600,1.5838454,157.85,157.76,19.07]
[1721129114795,1.5838454,157.85,157.78,37.09]
[1721129115615,15.4784,157.84,157.75,37.09]
[1721129115813,1.58435519,157.83,157.75,37.09]
[1721129116119,7.77901221,157.82,157.72,37.09]
[1721129117409,7.77901221,157.82,157.73,0.17]
[1721129117609,7.77901221,157.82,157.72,37.09]
[1721129117811,10.0,157.81,157.72,37.09]
[1721129118121,1.58473866,157.8,157.72,37.09]
[1721129118413,1.5846102,157.79,157.72,37.09]
[1721129118920,15.4784,157.78,157.72,37.09]
[1721129119989,15.4784,157.78,157.73,1.26762462]
[1721129120315,15.4784,157.78,157.72,37.09]
[1721129120503,15.4784,157.78,157.73,0.17]
[1721129121915,6.5597,157.76,157.72,37.09]
[1721129122298,6.5597,157.76,157.68,37.09]
[1721129122602,6.5597,157.76,157.69,20.0]
[1721129122803,6.5597,157.76,157.7,1.2678876]
[1721129123191,6.5597,157.76,157.69,20.0]
[1721129123519,6.5597,157.76,157.73,37.09]
[1721129128216,8.14443628,157.76,157.73,37.09]
[1721129128424,6.5597,157.76,157.73,37.09]
[1721129129926,8.14453845,157.76,157.73,37.09]
[1721129130930,1.58490717,157.75,157.73,37.09]
[1721129131125,1.58490717,157.75,157.69,20.0]
[1721129131735,1.58490717,157.75,157.67,6.6285601]
[1721129131938,1.58490717,157.75,157.68,37.09]
[1721129132221,6.5597,157.76,157.71,37.09]
[1721129132424,6.5597,157.76,157.72,1.26780666]
[1721129133306,6.5597,157.76,157.68,19.07]
[1721129133520,1.58482414,157.75,157.71,37.09]
[1721129134416,6.5597,157.76,157.72,1.26791702]
[1721129134617,8.1445963,157.76,157.72,1.26791702]
[1721129134923,8.1445963,157.76,157.71,37.09]
[1721129135521,8.1445963,157.76,157.69,20.0]
[1721129135922,8.1445963,157.76,157.68,37.09]
[1721129135923,18.1445963,157.76,157.68,37.09]
[1721129137130,18.1445963,157.76,157.69,1.26814234]
[1721129138604,18.1445963,157.76,157.68,37.09]
[1721129139228,18.1445963,157.76,157.69,1.2681497]
[1721129141131,8.1445963,157.76,157.69,1.2681497]
[1721129141319,6.5597,157.76,157.71,37.09]
[1721129141634,6.5597,157.76,157.72,21.26785015]
[1721129143125,7.60013111,157.83,157.75,37.09]
[1721129143305,7.60013111,157.83,157.78,37.09]
[1721129144117,6.0155,157.83,157.78,37.09]
[1721129144619,1.58416138,157.82,157.78,37.09]
[1721129145312,1.58416138,157.82,157.72,35.5305]
[1721129145313,1.58416138,157.82,157.72,37.09]
[1721129145630,25.6413,157.81,157.72,37.09]
[1721129145931,6.4961,157.79,157.72,37.09]
[1721129146126,1.58482086,157.78,157.72,37.09]
[1721129147228,6.4961,157.79,157.73,1.26780118]
[1721129147426,6.4961,157.79,157.72,37.09]
[1721129147427,6.4961,157.79,157.74,1.26763177]
[1721129147611,1.58453971,157.78,157.72,37.09]
[1721129148225,1.58453971,157.78,157.73,1.26778453]
[1721129148426,1.58453971,157.78,157.72,37.09]
[1721129148819,1.58453971,157.78,157.73,1.26778662]
[1721129151239,8.08082141,157.79,157.73,1.26777713]
[1721129152055,6.4961,157.79,157.73,1.26767947]
[1721129152219,6.4961,157.79,157.72,37.09]
[1721129152412,1.5845654,157.78,157.72,37.09]
[1721129153035,6.4961,157.79,157.72,37.09]
[1721129153316,6.4961,157.79,157.72,38.35768124]
[1721129154139,1.58459913,157.78,157.72,37.09]
[1721129154511,6.4961,157.79,157.73,1.26768132]
[1721129154937,6.4961,157.79,157.75,37.09]
[1721129155129,6.4961,157.79,157.76,1.26745199]
[1721129155309,7.99924923,157.84,157.77,1.26742066]
[1721129155508,7.99924923,157.84,157.74,19.24]
[1721129155509,7.99924923,157.84,157.78,37.09]
[1721129160743,7.99924923,157.84,157.75,37.09]
[1721129161148,7.99924923,157.84,157.76,1.26739402]
[1721129161940,6.4806,157.79,157.68,19.07]
[1721129162235,6.4806,157.79,157.73,37.09]
[1721129162626,8.06507505,157.79,157.73,37.09]
[1721129163529,16.338,157.78,157.68,37.09]
[1721129163752,1.58502166,157.77,157.68,37.09]
[1721129163964,16.338,157.78,157.68,37.09]
[1721129163965,1.58502166,157.76,157.68,37.09]
[1721129164452,1.58478659,157.78,157.71,37.09]
[1721129164625,1.58478659,157.78,157.72,1.26783119]
[1721129164829,11.58478659,157.78,157.71,37.09]
[1721129165030,17.92288659,157.78,157.68,37.09]
[1721129165822,6.3384,157.77,157.68,37.09]
[1721129166045,1.58508075,157.76,157.68,37.09]
[1721129166245,1.58508075,157.76,157.68,38.35808158]
[1721129166553,1.58508075,157.76,157.68,37.09]
[1721129166754,6.4806,157.79,157.69,0.17]
[1721129166755,1.58490988,157.78,157.69,0.17]
[1721129167659,1.58490988,157.78,157.69,1.4379279]
[1721129167860,8.06543889,157.79,157.71,37.09]
[1721129168149,8.06543889,157.79,157.72,1.60763821]
[1721129168829,6.4806,157.79,157.74,37.09]
[1721129169156,6.4806,157.79,157.75,1.26755651]
[1721129169650,6.4806,157.79,157.74,37.09]
[1721129169858,8.0649463,157.79,157.74,37.09]
[1721129170061,6.4806,157.79,157.74,37.09]
[1721129170351,6.4806,157.79,157.75,0.17]
[1721129170660,6.4806,157.79,157.74,37.09]
[1721129170837,6.4806,157.79,157.75,1.26759672]
[1721129171041,6.4806,157.79,157.75,1.43759672]
[1721129172131,1.58435177,157.82,157.77,37.09]
[1721129172429,1.58435177,157.82,157.78,1.26739374]
[1721129172430,1.58424221,157.82,157.78,1.26739374]
[1721129173365,1.58424221,157.82,157.75,0.17]
[1721129173536,1.58424221,157.82,157.74,37.09]
[1721129173935,11.58424221,157.82,157.68,19.07]
[1721129174161,11.58424221,157.82,157.67,15.4212]
[1721129174162,11.58424221,157.82,157.7,37.09]
[1721129174365,10.0,157.8,157.7,37.09]
[1721129174578,1.58491095,157.79,157.7,37.09]
[1721129174750,16.0183,157.77,157.7,37.09]
[1721129174956,1.58491929,157.76,157.7,37.09]
[1721129176354,6.1561,157.75,157.7,37.09]
[1721129176558,1.5850501,157.74,157.7,37.09]
[1721129177082,7.74114767,157.75,157.71,1.26803814]
[1721129177372,6.1561,157.75,157.71,1.26803814]
[1721129177752,1.58497244,157.74,157.64,25.69574519]
[1721129177953,1.58497244,157.74,157.67,37.09]
[1721129178138,1.58497244,157.74,157.68,20.0]
[1721129180458,1.58497244,157.74,157.69,1.26810102]
[1721129180670,1.58497244,157.74,157.68,20.0]
[1721129180860,1.58497244,157.74,157.69,1.26811204]
[1721129181067,6.1561,157.75,157.69,1.26811204]
[1721129181376,1.58500822,157.74,157.69,1.26811204]
[1721129181666,6.1561,157.75,157.69,1.26811204]
[1721129183360,1.58500522,157.74,157.68,20.0]
[1721129183554,1.58500522,157.74,157.67,37.09]
[1721129183759,1.58500522,157.74,157.64,37.09]
[1721129185046,26.173,157.73,157.64,37.09]
[1721129185245,6.3102,157.71,157.6,37.09]
[1721129185471,1.58559038,157.7,157.6,37.09]
[1721129186674,1.58559038,157.7,157.61,1.26843211]
[1721129186850,6.3102,157.71,157.63,37.09]
[1721129187158,6.3102,157.71,157.66,37.09]
[1721129187373,6.3102,157.71,157.67,1.26817875]
[1721129187556,6.3102,157.71,157.68,1.26821504]
[1721129187768,6.3102,157.71,157.66,37.09]
[1721129188352,6.3102,157.71,157.67,1.26824125]
[1721129189981,6.3102,157.71,157.66,37.09]
[1721129190676,7.89556437,157.71,157.66,37.09]
[1721129190889,7.89556437,157.71,157.67,1.26829741]
[1721129191360,6.3102,157.71,157.66,37.09]
[1721129191675,6.3102,157.71,157.67,1.26829727]
[1721129192379,6.3102,157.71,157.66,37.09]